bitfinex-derivatives/quotes_ETHF0:USTF0_20250404
["timestamp","ask_amount","ask_price","bid_price","bid_amount"]
[1743805133465,6.71689,1821.7,1821.6,2.588669]
[1743805133666,6.71689,1821.7,1821.6,2.58864548]
[1743805134168,6.71689,1821.7,1821.6,1.88136479]
[1743805134671,1.09835,1821.6,1821.5,3.36817]
[1743805134866,2.56965,1821.6,1821.5,4.15130085]
[1743805135168,2.56965,1821.6,1821.5,4.85868029]
[1743805135574,2.56965,1821.6,1821.5,4.85858914]
[1743805137472,2.56965,1821.6,1821.5,4.85847125]
[1743805139377,1.4713,1821.6,1821.5,4.85818214]
[1743805140374,3.2078,1821.7,1821.6,1.09835]
[1743805140574,3.2078,1821.7,1821.6,4.07376214]
[1743805140767,3.2078,1821.7,1821.6,4.07339732]
[1743805141375,5.33506,1821.8,1821.7,1.09829]
[1743805141577,5.33506,1821.8,1821.7,3.99335788]
[1743805145074,4.62926,1821.8,1821.7,3.99335788]
[1743805145774,4.62923,1821.8,1821.7,4.699884]
[1743805145980,3.2078,1821.9,1821.8,1.09823]
[1743805146179,3.2078,1821.9,1821.8,3.31821528]
[1743805146381,3.2078,1821.9,1821.8,4.03711528]
[1743805146574,3.2078,1821.9,1821.8,4.7436414]
[1743805146782,3.2078,1821.9,1821.8,4.74329278]
[1743805147981,3.2078,1821.9,1821.8,4.74311061]
[1743805150482,4.6291,1822.1,1822.0,1.09811]
[1743805150681,7.8369,1822.1,1822.0,1.09811]
[1743805150981,7.8369,1822.1,1822.0,2.60351]
[1743805154478,9.2375,1822.1,1821.6,2.74578]
[1743805154669,4.30602,1821.9,1821.8,1.09823]
[1743805154876,4.30602,1821.9,1821.8,2.57953]
[1743805155076,5.03572,1821.9,1821.8,2.57953]
[1743805155376,6.43632,1821.9,1821.8,2.57953]
[1743805156279,3.9375,1821.9,1821.8,2.57953]
[1743805156483,1.09815,1822.0,1821.9,1.09817]
[1743805156784,1.09815,1822.0,1821.9,3.27607]
[1743805158379,2.61895,1822.0,1821.9,3.27607]
[1743805167286,5.82675,1822.0,1821.9,3.27607]
[1743805170088,4.30595,1822.0,1821.9,3.27607]
[1743805171091,3.2078,1822.0,1821.9,4.05803867]
[1743805171694,5.34698,1822.1,1822.0,1.09811]
[1743805171992,5.34698,1822.1,1822.0,3.28837867]
[1743805172193,5.34698,1822.1,1822.0,3.28833068]
[1743805172494,5.34698,1822.1,1822.0,3.99456263]
[1743805172996,5.34698,1822.1,1822.0,3.28833068]
[1743805174093,5.34698,1822.1,1822.0,3.99454095]
[1743805174795,3.529,1822.1,1822.0,4.72804095]
[1743805175890,7.83484,1822.2,1822.1,1.09805]
[1743805176196,7.83484,1822.2,1822.1,3.38205]
[1743805177493,3.2078,1822.2,1822.1,3.38205]
[1743805181698,3.2078,1822.2,1822.1,4.16340584]
[1743805182097,3.2078,1822.2,1822.1,4.86913562]
[1743805182397,5.37094,1822.3,1822.2,1.09799]
[1743805182597,5.37094,1822.3,1822.2,2.55079]
[1743805182794,4.273,1822.3,1822.2,2.55079]
[1743805186394,5.7288,1822.3,1822.2,2.55079]
[1743805186997,4.273,1822.3,1822.2,3.33150264]
[1743805187501,4.273,1822.3,1822.2,2.55079]
[1743805188704,4.273,1822.3,1822.2,3.3313575]
[1743805189000,4.273,1822.3,1822.2,3.33135512]
[1743805189791,4.273,1822.3,1822.2,3.33127845]
[1743805190197,0.744,1822.3,1822.2,2.55079]
[1743805190398,3.2078,1822.4,1822.3,1.09793]
[1743805190598,3.2078,1822.4,1822.3,4.82437422]
[1743805190796,3.528,1822.6,1822.5,1.09781]
[1743805190996,6.7358,1822.6,1822.5,1.87795335]
[1743805191297,6.7358,1822.9,1822.8,1.09763]
[1743805191692,3.528,1822.9,1822.8,2.55993]
[1743805192404,2.59375,1823.0,1822.9,1.09756]
[1743805192704,6.12175,1823.0,1822.9,2.50116]
[1743805193098,7.4283,1823.1,1823.0,1.0975]
[1743805193300,7.4283,1823.1,1823.0,3.254]
[1743805194101,6.7358,1823.1,1823.0,3.254]
[1743805194302,3.2078,1823.1,1823.0,3.254]
[1743805194706,7.4903,1823.3,1823.2,1.09738]
[1743805195306,7.4903,1823.3,1823.2,2.50098]
[1743805195604,3.9633,1823.3,1823.2,2.50098]
[1743805196103,3.2078,1823.3,1823.2,2.50098]
[1743805196507,4.30512,1823.3,1823.2,2.50098]
[1743805196799,3.2078,1823.3,1823.2,2.50098]
[1743805197002,4.30512,1823.3,1823.2,2.50098]
[1743805199794,1.09738,1823.2,1823.1,0.00824605]
[1743805199999,3.35688,1823.2,1823.1,0.00824605]
[1743805201006,3.35688,1823.2,1823.1,1.10568605]
[1743805201306,3.35688,1823.2,1823.1,0.00824605]
[1743805208308,1.09769,1822.8,1822.6,2.74435]
[1743805208505,1.09769,1822.8,1822.7,1.09764]
[1743805208707,3.26849,1822.7,1822.6,2.58509]
[1743805208908,7.20329,1822.7,1822.6,2.58509]
[1743805209812,3.2078,1822.7,1822.6,2.58509]
[1743805211012,3.2078,1822.7,1822.6,5.08509]
[1743805212613,0.00824605,1822.8,1822.7,1.09769]
[1743805212813,0.00824605,1822.8,1822.7,2.61199]
[1743805216915,1.10587605,1822.8,1822.7,2.61199]
[1743805217418,0.00824605,1822.8,1822.7,2.61199]
[1743805218214,1.10587605,1822.8,1822.7,2.61199]
[1743805218416,0.00824605,1822.8,1822.7,2.61199]
[1743805220317,0.00824605,1822.8,1822.7,3.3906704]
[1743805220518,0.00824605,1822.8,1822.7,4.09282573]
[1743805222919,0.00824605,1822.8,1822.7,4.09278133]
[1743805224517,0.00824605,1822.8,1822.7,3.31414533]
[1743805224722,0.00824605,1822.8,1822.7,4.09317763]
[1743805229427,0.00824605,1822.8,1822.7,4.0945214]
[1743805230226,0.00824605,1822.8,1822.7,4.09452533]
[1743805232027,0.00824605,1822.8,1822.7,4.09432591]
[1743805233125,0.00824605,1822.8,1822.7,4.09438742]
[1743805233823,0.00824605,1822.8,1822.7,3.31414533]
[1743805234029,0.00824605,1822.8,1822.7,4.09435108]
[1743805237633,0.00824605,1822.8,1822.7,4.09437489]
[1743805238133,1.10587605,1822.8,1822.7,4.09437489]
[1743805238333,1.10587605,1822.8,1822.7,2.58007489]
[1743805238533,1.46384605,1822.8,1822.7,2.58007489]
[1743805239434,1.46384605,1822.8,1822.7,2.58024658]
[1743805240835,2.56147605,1822.8,1822.7,2.58024658]
[1743805242438,1.46384605,1822.8,1822.7,2.58024658]
[1743805245337,2.56147605,1822.8,1822.7,3.98264658]
[1743805245634,1.46384605,1822.8,1822.7,3.98264658]
[1743805247742,2.56147605,1822.8,1822.7,3.98264658]
[1743805248743,2.56147605,1822.8,1822.7,3.982542]
[1743805250645,1.46384605,1822.8,1822.7,3.982542]
[1743805252445,2.56147605,1822.8,1822.7,3.98207381]
[1743805253146,1.46384605,1822.8,1822.7,3.98207381]
[1743805253446,2.56147605,1822.8,1822.7,3.98207381]
[1743805253847,1.46384605,1822.8,1822.7,3.98207381]
[1743805255648,2.56147605,1822.8,1822.7,3.98207381]
[1743805256551,1.46384605,1822.8,1822.7,3.98207381]
[1743805256752,1.46384605,1822.8,1822.7,4.74187381]
[1743805256947,0.00824605,1822.8,1822.7,4.74187381]
[1743805258055,0.00824605,1822.8,1822.7,4.74168597]
[1743805258850,0.00824605,1822.8,1822.7,5.47718597]
[1743805260468,0.00824605,1822.8,1822.7,5.47698072]
[1743805261262,0.00824605,1822.8,1822.7,5.47692189]
[1743805263166,1e-08,1822.8,1822.7,6.00155714]
[1743805263465,1e-08,1822.8,1822.7,5.47660948]
[1743805264158,1e-08,1822.8,1822.7,6.00136129]
[1743805264358,1e-08,1822.8,1822.7,5.47660948]
[1743805264970,1e-08,1822.8,1822.7,5.47618426]
[1743805266667,1e-08,1822.8,1822.7,5.47605067]
[1743805266967,1e-08,1822.8,1822.7,5.47607545]
[1743805268665,1e-08,1822.8,1822.7,5.47593711]
[1743805270565,1e-08,1822.8,1822.7,5.47578724]
[1743805273065,1e-08,1822.8,1822.7,11.49878724]
[1743805273466,1e-08,1822.8,1822.7,12.02303801]
[1743805274961,1e-08,1822.8,1822.7,11.49878724]
[1743805275158,1e-08,1822.8,1822.7,12.02294062]
[1743805276273,1e-08,1822.8,1822.7,12.02234139]
[1743805276470,0.7243,1823.3,1823.2,1.09738]
[1743805276669,0.7243,1823.3,1823.2,1.87502268]
[1743805276971,1.4793,1823.4,1823.3,1.09732]
[1743805277172,1.4793,1823.4,1823.3,4.00377533]
[1743805277670,3.913,1823.5,1823.4,1.09726]
[1743805277871,3.913,1823.5,1823.4,2.49606]
[1743805278374,3.913,1823.5,1823.4,3.19821533]
[1743805278671,0.7052,1823.5,1823.4,3.9749069]
[1743805278872,3.2078,1823.7,1823.6,1.09714]
[1743805279073,5.3693,1823.7,1823.6,1.09714]
[1743805279274,0.7459,1823.7,1823.6,1.09714]
[1743805279473,3.2078,1823.9,1823.8,1.09702]
[1743805279672,3.9537,1823.9,1823.8,1.09702]
[1743805279876,5.3693,1823.9,1823.8,1.09702]
[1743805280277,6.46626,1823.9,1823.8,1.09702]
[1743805280577,5.3693,1823.9,1823.8,1.09702]
[1743805280981,3.2078,1823.9,1823.8,1.09702]
[1743805281270,3.2078,1823.9,1823.8,1.79792]
[1743805281472,0.7585,1824.0,1823.9,1.09696]
[1743805281666,0.7585,1824.0,1823.9,2.56646]
[1743805282767,2.2669,1824.0,1823.9,2.56646]
[1743805283376,2.2669,1824.0,1823.9,1.09696]
[1743805285479,2.2669,1824.0,1823.9,2.61696]
[1743805288280,3.2078,1824.2,1823.9,1.52]
[1743805288476,2.2286,1824.3,1824.2,1.09678]
[1743805289072,3.2078,1824.8,1824.5,1.0966]
[1743805289278,3.2078,1825.1,1825.0,1.09625]
[1743805289684,4.6723,1825.1,1825.0,1.09625]
[1743805291679,1.4645,1825.1,1825.0,1.09625]
[1743805291879,0.7641,1825.2,1825.1,1.09624]
[1743805292283,0.7641,1825.2,1825.1,4.61924]
[1743805292483,4.7419,1825.3,1825.2,1.09618]
[1743805292778,3.2078,1825.3,1825.2,2.49558]
[1743805293085,0.74,1825.4,1825.3,1.09612]
[1743805293289,2.2137,1825.6,1825.5,1.096]
[1743805293883,2.73882,1826.3,1825.5,1.096]
[1743805293884,3.2078,1825.9,1825.6,5.47969]
[1743805294191,3.07e-06,1825.9,1825.8,1.09582]
[1743805294583,3.20780307,1825.9,1825.8,1.09582]
[1743805294778,5.70780307,1825.9,1825.8,1.09582]
[1743805295186,9.23880307,1825.9,1825.8,1.09582]
[1743805297188,6.74380307,1825.9,1825.8,1.09582]
[1743805297493,4.95460307,1825.9,1825.8,1.09582]
[1743805297692,1.41860307,1825.9,1825.8,1.09582]
[1743805297885,4.2959,1826.0,1825.9,1.09576]
[1743805298085,0.7345,1826.1,1826.0,1.0957]
[1743805300092,3.9423,1826.1,1826.0,1.0957]
[1743805301483,5.5613,1826.1,1826.0,1.0957]
[1743805302087,8.0613,1826.1,1826.0,1.0957]
[1743805302794,5.5613,1826.1,1826.0,1.0957]
[1743805302996,3.533,1826.3,1826.2,1.09558]
[1743805303199,3.533,1826.3,1826.2,2.56568]
[1743805304689,3.546,1826.5,1826.3,2.7387]
[1743805304885,3.546,1826.5,1826.4,2.56556]
[1743805305490,2.293,1826.6,1826.5,1.0954]
[1743805305692,5.838,1826.6,1826.5,2.5793]
[1743805306397,1.4321,1826.6,1826.5,2.5793]
[1743805306602,0.8609,1826.8,1826.7,1.09528]
[1743805306793,4.4069,1826.8,1826.7,1.09528]
[1743805307095,4.4079,1826.8,1826.7,1.09528]
[1743805307395,0.7248,1827.2,1827.1,1.09504]
[1743805307986,1.5857,1827.2,1827.1,1.09504]
[1743805308700,4.0857,1827.2,1827.1,1.09504]
[1743805309405,1.5857,1827.2,1827.1,1.09504]
[1743805309898,0.7248,1827.2,1827.1,1.09504]
[1743805310087,0.8609,1827.4,1827.3,1.09492]
[1743805310293,4.4389,1827.4,1827.3,1.09492]
[1743805311296,6.7858,1827.5,1827.4,1.09486]
[1743805312599,8.7408,1827.5,1827.4,1.09486]
[1743805315702,1.09486,1827.4,1827.3,1.4047]
[1743805316007,1.09501,1827.2,1827.1,1.09498]
[1743805316198,1.09508,1827.1,1827.0,1.09506]
[1743805316405,1.09522,1826.9,1826.8,1.09519]
[1743805316604,4.67722,1826.9,1826.8,1.09519]
[1743805316998,4.67722,1826.9,1826.8,2.48629]
[1743805317801,3.582,1826.9,1826.8,2.48629]
[1743805318008,4.67716,1826.9,1826.8,2.48629]
[1743805319410,1.09522,1826.8,1826.7,1.09523]
[1743805319998,4.6772,1826.9,1826.8,1.09522]
[1743805320808,4.67716,1826.9,1826.8,1.09522]
[1743805321209,1.09527,1826.8,1826.7,1.09523]
[1743805321409,1.09527,1826.8,1826.7,2.59043]
[1743805321613,4.6772,1826.9,1826.8,1.09522]
[1743805322807,1.09522,1826.8,1826.7,2.59042]
[1743805324208,1.09528,1826.7,1826.6,0.00822233]
[1743805324508,4.30308,1826.7,1826.6,0.00822233]
[1743805324815,6.80308,1826.7,1826.6,2.58106233]
[1743805325412,6.80308,1826.7,1826.6,1.48572233]
[1743805326709,6.80308,1826.7,1826.6,2.58106233]
[1743805327115,1.09526,1826.8,1826.7,1.09528]
[1743805327309,1.09526,1826.8,1826.7,2.50198]
[1743805328108,1.09526,1826.8,1826.7,3.2286856]
[1743805328911,1.09526,1826.8,1826.7,2.50198]
[1743805329725,1.09526,1826.8,1826.7,3.22922228]
[1743805331626,1.09526,1826.8,1826.7,2.50198]
[1743805331826,1.09526,1826.8,1826.7,1.4067]
[1743805332525,1.09526,1826.8,1826.7,2.50198]
[1743805333228,4.303,1826.9,1826.8,1.09522]
[1743805333421,7.869,1826.9,1826.8,3.23962]
[1743805333829,7.869,1826.9,1826.8,3.96807359]
[1743805337720,1.09515,1827.0,1826.9,1.0951]
[1743805337926,4.65915,1827.0,1826.9,1.0951]
[1743805339035,1.09515,1827.0,1826.9,1.0951]
[1743805339227,4.65815,1827.0,1826.9,1.0951]
[1743805342834,4.6581,1827.0,1826.9,1.0951]
[1743805343037,3.563,1827.0,1826.9,1.0951]
[1743805343935,4.6581,1827.0,1826.9,1.0951]
[1743805344136,1.09516,1826.9,1826.8,1.80336]
[1743805344936,4.65815,1827.0,1826.9,1.09516]
[1743805349334,1.09516,1826.9,1826.8,1.80338]
[1743805351336,4.30296,1826.9,1826.8,1.80338]
[1743805351734,1.09528,1826.8,1826.7,1.09523]
[1743805351934,1.09528,1826.8,1826.7,1.82473]
[1743805353438,1.95598,1826.8,1826.7,1.82473]
[1743805353738,1.09528,1826.7,1826.6,0.00822233]
[1743805353937,9.47428,1826.7,1826.6,0.00822233]
[1743805355040,11.97428,1826.7,1826.6,0.00822233]
[1743805355237,1.09553,1826.4,1826.3,2.55278]
[1743805355540,4.65253,1826.4,1826.3,1.4573]
[1743805355933,1.09558,1826.2,1826.1,0.7667]
[1743805356143,1.09558,1826.2,1826.1,2.224]
[1743805356442,1.09564,1826.1,1826.0,1.10392233]
[1743805356738,4.66364,1826.1,1826.0,1.46552233]
[1743805356945,8.02474,1826.1,1826.0,0.00822233]
[1743805357243,11.23254,1826.1,1826.0,0.00822233]
[1743805357746,11.23254,1826.1,1825.8,2.52588]
[1743805357747,1.09594,1825.6,1825.5,0.7225]
[1743805357942,1.096,1825.5,1825.4,2.52614]
[1743805358246,1.096,1825.5,1825.4,2.52611]
[1743805358443,1.096,1825.5,1825.4,1.4301]
[1743805359040,4.3038,1825.5,1825.4,1.4301]
[1743805359240,1.09606,1825.4,1825.3,0.00822233]
[1743805359445,1.95716,1825.4,1825.3,0.00822233]
[1743805359840,1.09605,1825.5,1825.4,1.09606]
[1743805360138,1.09605,1825.5,1825.4,1.5163]
[1743805360343,4.30385,1825.5,1825.4,1.5163]
[1743805360737,5.16795,1825.5,1825.4,1.5163]
[1743805363144,3.582,1825.5,1825.4,2.61236]
[1743805363340,3.582,1825.5,1825.4,4.08996]
[1743805364248,4.678,1825.5,1825.4,4.08996]
[1743805364847,3.582,1825.5,1825.4,4.08996]
[1743805368444,6.7848,1825.9,1825.5,2.74001]
[1743805368644,4.67282,1825.9,1825.8,1.09582]
[1743805369141,1.09582,1825.8,1825.7,2.50134]
[1743805369539,1.09582,1825.8,1825.7,1.4055]
[1743805369755,4.45982,1825.8,1825.7,1.4055]
[1743805370549,1.096,1825.5,1825.4,1.4776]
[1743805370756,1.096,1825.5,1825.4,2.57361]
[1743805371252,1.096,1825.5,1825.4,0.7193]
[1743805371451,1.096,1825.5,1825.4,1.81536]
[1743805371754,3.579,1825.5,1825.4,1.81536]
[1743805371954,3.579,1825.5,1825.4,3.91796]
[1743805372453,4.675,1825.5,1825.4,3.91796]
[1743805373451,4.675,1825.5,1825.4,3.22086]
[1743805373756,4.675,1825.5,1825.4,2.1248]
[1743805373948,7.8828,1825.5,1825.4,2.1248]
[1743805374149,8.7468,1825.5,1825.4,2.1248]
[1743805374546,8.7468,1825.5,1825.4,1.4055]
[1743805374751,1.09606,1825.4,1825.3,0.00822233]
[1743805375056,1.96006,1825.4,1825.3,2.56074233]
[1743805375249,1.09606,1825.4,1825.3,2.56074233]
[1743805377652,1.09606,1825.4,1825.3,1.46462233]
[1743805377852,1.09606,1825.4,1825.3,2.56074233]
[1743805379856,1.09606,1825.4,1825.3,1.46462233]
[1743805380452,1.09606,1825.4,1825.3,2.56074233]
[1743805380855,1.09606,1825.4,1825.3,1.46462233]
[1743805381356,1.09606,1825.4,1825.3,2.56074233]
[1743805384365,1.09606,1825.4,1825.3,1.46462233]
[1743805384563,1.09606,1825.4,1825.3,2.56074233]
[1743805385863,4.66005,1825.5,1825.4,1.09606]
[1743805386065,4.66005,1825.5,1825.4,3.30336]
[1743805388668,7.86785,1825.5,1825.4,2.2073]
[1743805389367,7.86785,1825.5,1825.4,3.30336]
[1743805389868,4.66005,1825.5,1825.4,3.30336]
[1743805390060,4.66005,1825.5,1825.4,4.03929892]
[1743805391268,4.66005,1825.5,1825.4,2.94323892]
[1743805391662,4.66005,1825.5,1825.4,4.03929892]
[1743805393270,4.66005,1825.5,1825.4,2.94323892]
[1743805393772,7.86785,1825.5,1825.4,2.94323892]
[1743805393977,7.86785,1825.5,1825.4,2.2073]
[1743805394171,4.66005,1825.5,1825.4,3.30336]
[1743805395467,4.66005,1825.5,1825.4,4.82072538]
[1743805395666,4.65099,1825.6,1825.5,1.09594]
[1743805395868,4.65099,1825.6,1825.5,4.06554266]
[1743805396177,4.65099,1825.6,1825.5,4.80220538]
[1743805396770,4.65099,1825.6,1825.5,4.80228186]
[1743805397070,4.65186,1825.8,1825.7,1.0958]
[1743805397577,4.65186,1825.8,1825.7,4.84414391]
[1743805397973,3.556,1825.8,1825.7,4.84414391]
[1743805398678,3.556,1825.8,1825.7,4.84377665]
[1743805399375,1.0958,1825.9,1825.8,1.09582]
[1743805399568,1.0958,1825.9,1825.8,2.63112]
[1743805399774,1.0958,1825.9,1825.8,3.36778272]
[1743805400677,1.0958,1825.9,1825.8,2.63112]
[1743805401975,1.0958,1825.9,1825.8,3.3669712]
[1743805405476,1.0958,1825.9,1825.8,2.63112]
[1743805410381,1.0958,1825.9,1825.3,0.00822233]
[1743805410382,5.7078,1825.9,1825.3,0.00822233]
[1743805410585,1.09606,1825.4,1825.3,0.00822233]
[1743805410779,4.65606,1825.4,1825.3,0.00822233]
[1743805410978,6.85976,1825.4,1825.3,0.00822233]
[1743805413676,1.0963,1825.1,1825.0,1.09629]
[1743805413881,4.6543,1825.1,1825.0,3.35646194]
[1743805414185,3.558,1825.1,1825.0,3.35646194]
[1743805415588,4.65424,1825.1,1825.0,3.35646194]
[1743805420279,4.65424,1825.1,1825.0,2.62819]
[1743805421288,3.558,1825.1,1825.0,2.62819]
[1743805422584,1.10445233,1825.2,1825.1,1.09624]
[1743805422888,1.10445233,1825.2,1825.1,2.61704]
[1743805433408,1.10445233,1825.2,1825.1,1.5208]
[1743805434305,1.10445233,1825.2,1825.1,2.61704]
[1743805438602,1.10445233,1825.2,1825.1,1.5208]
[1743805439304,1.10445233,1825.2,1825.1,2.61704]
[1743805439907,1.10445233,1825.2,1825.1,1.5208]
[1743805440308,1.10445233,1825.2,1825.0,1.09625]
[1743805440309,1.09646,1824.8,1824.7,1.0964]
[1743805440604,1.09646,1824.8,1824.7,2.63937448]
[1743805440805,1.09646,1824.8,1824.7,3.36940787]
[1743805441304,1.09646,1824.8,1824.7,3.36946226]
[1743805441708,1.09646,1824.8,1824.7,5.63976226]
[1743805443406,1.09646,1824.8,1824.7,3.00033339]
[1743805443606,1.79266,1824.8,1824.7,3.00033339]
[1743805444113,1.79266,1824.8,1824.7,2.2703]
[1743805444507,1.79266,1824.8,1824.7,3.36678]
[1743805444710,1.79266,1824.8,1824.7,2.2703]
[1743805446009,1.79266,1824.8,1824.7,1.5183]
[1743805446309,1.09648,1824.7,1824.6,0.00822233]
[1743805446513,5.16978,1824.7,1824.6,0.00822233]
[1743805449809,5.16978,1824.7,1824.5,1.5314]
[1743805449810,12.05586,1824.7,1824.1,3.2078]
[1743805450016,1.09666,1824.4,1824.3,1.4672]
[1743805450416,1.09684,1824.1,1824.0,1.09686]
[1743805450713,4.63984,1824.1,1824.0,3.30926]
[1743805453411,0.00822233,1824.2,1824.1,1.09684]
[1743805453614,0.00822233,1824.2,1824.1,2.62634]
[1743805456522,1.10500233,1824.2,1824.1,2.62634]
[1743805468030,4.63700233,1824.2,1824.1,2.62634]
[1743805469628,4.63700233,1824.2,1824.1,1.5295]
[1743805469835,5.34060233,1824.2,1824.1,1.5295]
[1743805470022,6.20700233,1824.2,1824.1,1.5295]
[1743805470223,5.34060233,1824.2,1824.1,1.5295]
[1743805470428,5.34060233,1824.2,1824.1,2.62634]
[1743805474140,5.34060233,1824.2,1824.1,1.5295]
[1743805475036,5.34060233,1824.2,1824.1,2.62634]
[1743805476236,5.34060233,1824.2,1824.1,1.5295]
[1743805476926,5.34060233,1824.2,1824.1,2.62634]
[1743805477429,5.34060233,1824.2,1824.1,1.5295]
[1743805478838,5.34060233,1824.2,1824.1,2.62634]
[1743805479036,4.63800233,1824.2,1824.1,2.62634]
[1743805479437,0.00822233,1824.2,1824.1,4.13519508]
[1743805479637,1.10500233,1824.2,1824.1,4.13519508]
[1743805482533,0.00822233,1824.2,1824.1,4.13519508]
[1743805483332,0.00822233,1824.2,1824.1,6.63519508]
[1743805484139,0.00822233,1824.2,1824.1,4.13519508]
[1743805489843,0.00822233,1824.2,1824.1,4.13491683]
[1743805492646,1.10500233,1824.2,1824.1,4.13491683]
[1743805493247,0.00822233,1824.2,1824.1,4.13491683]
[1743805495446,1.10500233,1824.2,1824.1,4.13478235]
[1743805497752,0.00822233,1824.2,1824.1,4.13478235]
[1743805498652,1.10500233,1824.2,1824.1,4.13478235]
[1743805499152,1.10500233,1824.2,1824.1,4.13485941]
[1743805501955,0.00822233,1824.2,1824.1,4.13459134]
[1743805502145,0.00822233,1824.2,1824.1,7.34239134]
[1743805502347,0.00822233,1824.2,1824.1,7.34229986]
[1743805503554,1.10500233,1824.2,1824.1,7.34229986]
[1743805503756,0.00822233,1824.2,1824.1,7.34229986]
[1743805506059,0.00822233,1824.2,1824.1,7.3704583]
[1743805508160,1.10500233,1824.2,1824.1,7.3704583]
[1743805508461,0.00822233,1824.2,1824.1,7.3704583]
[1743805509655,0.00822233,1824.2,1824.1,4.1626583]
[1743805509961,0.00822233,1824.2,1824.1,4.16286378]
[1743805511658,0.00822233,1824.2,1824.1,3.35599986]
[1743805511865,0.00822233,1824.2,1824.1,4.16296892]
[1743805512162,0.00822233,1824.2,1824.1,4.69032666]
[1743805513561,0.00822233,1824.2,1824.1,4.68972464]
[1743805515668,0.00822233,1824.2,1824.1,4.16258129]
[1743805516160,0.00822233,1824.2,1824.1,4.68959452]
[1743805516561,3.2078,1824.7,1824.6,1.09654]
[1743805516761,3.2078,1824.7,1824.6,2.63278129]
[1743805517361,3.2078,1824.7,1824.6,4.04328129]
[1743805518364,0.00822233,1824.8,1824.7,1.09648]
[1743805518668,0.00822233,1824.8,1824.7,4.16212129]
[1743805519572,1.10464233,1824.8,1824.7,4.16212129]
[1743805519866,0.00822233,1824.8,1824.7,4.16212129]
[1743805525673,0.00822233,1824.8,1824.7,4.15564798]
[1743805526874,0.00822233,1824.8,1824.7,4.15583865]
[1743805528373,0.00822233,1824.8,1824.7,7.36363865]
[1743805529476,1.10464233,1824.8,1824.7,7.36363865]
[1743805529672,0.00822233,1824.8,1824.7,7.36363865]
[1743805530070,0.00822233,1824.8,1824.7,6.63397879]
[1743805531879,0.00822233,1824.8,1824.7,7.35986187]
[1743805532366,0.00822233,1824.8,1824.7,4.15206187]
[1743805532571,0.00822233,1824.8,1824.7,3.42617879]
[1743805533578,0.00822233,1824.8,1824.7,4.15210412]
[1743805534180,0.00822233,1824.8,1824.7,4.15253087]
[1743805534384,0.00822233,1824.8,1824.7,4.5985678]
[1743805534680,0.00822233,1824.8,1824.7,4.15253087]
[1743805535277,0.7113,1825.1,1825.0,1.0963]
[1743805535481,4.61918,1825.2,1825.1,1.09624]
[1743805535681,5.34068,1825.2,1825.1,1.09624]
[1743805535876,4.2445,1825.2,1825.1,1.09624]
[1743805536181,5.34068,1825.2,1825.1,1.09624]
[1743805536482,1.81768,1825.2,1825.1,1.09624]
[1743805537478,0.7215,1825.2,1825.1,1.09624]
[1743805537878,0.7215,1825.2,1825.1,1.84614]
[1743805538181,1.81768,1825.2,1825.1,1.84614]
[1743805538578,1.81768,1825.2,1825.1,1.09624]
[1743805538882,1.09624,1825.1,1825.0,1.10448233]
[1743805539183,2.60554,1825.1,1825.0,1.10448233]
[1743805540885,2.60554,1825.1,1825.0,2.52518233]
[1743805546191,2.60554,1825.1,1825.0,3.32753824]
[1743805548702,2.60554,1825.1,1825.0,4.05484318]
[1743805549103,2.60554,1825.1,1825.0,4.05475504]
[1743805551105,2.60554,1825.1,1825.0,4.05478313]
[1743805552103,1.96134,1825.1,1825.0,4.05478313]
[1743805552504,1.09624,1825.1,1825.0,4.05478313]
[1743805553005,1.09624,1825.1,1825.0,4.05472877]
[1743805555903,4.61824,1825.1,1825.0,4.05472877]
[1743805556305,3.522,1825.1,1825.0,4.05472877]
[1743805556505,1.10439233,1825.3,1825.0,5.69922877]
[1743805556704,1.10439233,1825.3,1825.2,1.09618]
[1743805556905,1.10439233,1825.3,1825.2,1.8984215]
[1743805557101,1.10439233,1825.3,1825.2,4.86502644]
[1743805557307,1.10439233,1825.3,1825.2,4.86476698]
[1743805557607,1.10439233,1825.3,1825.2,4.13746204]
[1743805558300,1.10439233,1825.3,1825.2,4.89716291]
[1743805562616,3.60439233,1825.3,1825.2,2.25190087]
[1743805562802,4.46809233,1825.3,1825.2,0.75970087]
[1743805563408,4.46809233,1825.3,1825.2,1.58908274]
[1743805563607,4.46809233,1825.3,1825.2,2.29438994]
[1743805564605,4.46809233,1825.3,1825.2,3.05454489]
[1743805565011,4.46809233,1825.3,1825.2,4.15074622]
[1743805565614,4.46809233,1825.3,1825.2,3.05456622]
[1743805565909,1.10439233,1825.3,1825.2,4.15074622]
[1743805567913,1.10439233,1825.3,1825.2,4.15076599]
[1743805568214,1.10439233,1825.3,1825.2,3.05458599]
[1743805568707,1.96789233,1825.3,1825.2,3.05458599]
[1743805568908,4.46789233,1825.3,1825.2,2.22515495]
[1743805569109,4.46789233,1825.3,1825.2,1.465]
[1743805569414,1.09624,1825.1,1825.0,1.43562233]
[1743805569617,7.82604,1825.1,1825.0,1.43562233]
[1743805570104,8.68944,1825.1,1825.0,1.43562233]
[1743805570307,7.82604,1825.1,1825.0,2.53192233]
[1743805570502,3.522,1825.1,1825.0,3.23132233]
[1743805570707,4.61823,1825.2,1825.1,1.09624]
[1743805570909,4.61823,1825.2,1825.1,2.54244]
[1743805572410,4.61823,1825.2,1825.1,4.12725752]
[1743805574617,5.35873,1825.2,1825.1,4.12763926]
[1743805575819,3.21602233,1825.3,1825.2,1.09618]
[1743805576021,3.21602233,1825.3,1825.2,4.87037926]
[1743805576613,4.31218233,1825.3,1825.2,4.87037926]
[1743805577815,1.10438233,1825.3,1825.2,4.87037926]
[1743805578016,0.00822233,1825.3,1825.2,3.28518]
[1743805578819,0.00822233,1825.3,1825.2,4.87023657]
[1743805580425,0.00822233,1825.3,1825.2,4.86925993]
[1743805582220,0.00822233,1825.3,1825.2,4.8687353]
[1743805584326,0.00822233,1825.3,1825.2,4.86853414]